[Event "NJSK 2023 Jeugd B"]
[Site "Almelo, Netherlands"]
[Date "2023.04.30"]
[Round "1.1"]
[White "Kumar, Prajit Sai"]
[Black "Snijders, Take"]
[Result "1-0"]
[TimeControl "90min/40moves + 30min + 30sec/move"]
[WhiteElo "2228"]
[BlackElo "1851"]

1. d4 {[%clk 01:30:58]} {[%emt 00:00:01]} Nf6 {[%clk 01:30:53]} {[%emt
00:00:07]} 2. Nf3 {[%clk 01:31:24]} {[%emt 00:00:04]} d5 {[%clk 01:31:19]}
{[%emt 00:00:05]} 3. c3 {[%clk 01:31:49]} {[%emt 00:00:05]} Bf5 {[%clk
01:30:22]} {[%emt 00:01:26]} 4. Qb3 {[%clk 01:32:10]} {[%emt 00:00:08]} Qc8
{[%clk 01:28:56]} {[%emt 00:01:56]} 5. c4 {[%clk 01:31:58]} {[%emt 00:00:43]}
e6 {[%clk 01:27:14]} {[%emt 00:02:13]} 6. Bg5 {[%clk 01:31:57]} {[%emt
00:00:30]} Nbd7 {[%clk 01:26:28]} {[%emt 00:01:16]} 7. Nc3 {[%clk 01:30:07]}
{[%emt 00:02:20]} dxc4 {[%clk 01:23:30]} {[%emt 00:03:28]} 8. Qxc4 {[%clk
01:30:31]} {[%emt 00:00:07]} Be7 {[%clk 01:22:08]} {[%emt 00:01:51]} 9. g3
{[%clk 01:29:34]} {[%emt 00:01:26]} O-O {[%clk 01:21:17]} {[%emt 00:01:23]} 10.
Bg2 {[%clk 01:28:58]} {[%emt 00:01:04]} h6 {[%clk 01:18:38]} {[%emt 00:03:09]}
11. Bf4 {[%clk 01:24:59]} {[%emt 00:04:30]} c6 {[%clk 01:17:33]} {[%emt
00:01:35]} 12. O-O {[%clk 01:24:23]} {[%emt 00:01:05]} Nb6 {[%clk 01:12:46]}
{[%emt 00:05:18]} 13. Qb3 {[%clk 01:24:31]} {[%emt 00:00:21]} Rd8 {[%clk
01:11:48]} {[%emt 00:01:28]} 14. Rac1 {[%clk 01:23:47]} {[%emt 00:01:14]} Nfd5
{[%clk 01:07:04]} {[%emt 00:05:15]} 15. Bd2 {[%clk 01:22:29]} {[%emt 00:01:47]}
Bh7 {[%clk 01:03:08]} {[%emt 00:04:27]} 16. a3 {[%clk 01:19:36]} {[%emt
00:03:23]} Nxc3 {[%clk 01:00:42]} {[%emt 00:02:56]} 17. Bxc3 {[%clk 01:19:14]}
{[%emt 00:00:52]} Bf6 {[%clk 00:58:06]} {[%emt 00:03:06]} 18. Rfd1 {[%clk
01:18:11]} {[%emt 00:01:32]} Rd7 {[%clk 00:52:51]} {[%emt 00:05:46]} 19. Ne5
{[%clk 01:18:07]} {[%emt 00:00:33]} Bxe5 {[%clk 00:52:16]} {[%emt 00:01:05]} 20.
dxe5 {[%clk 01:18:32]} {[%emt 00:00:06]} Qc7 {[%clk 00:50:46]} {[%emt
00:02:01]} 21. Rxd7 {[%clk 01:11:43]} {[%emt 00:07:18]} Nxd7 {[%clk 00:49:10]}
{[%emt 00:02:05]} 22. Bd4 {[%clk 01:04:24]} {[%emt 00:07:50]} Nb6 {[%clk
00:42:26]} {[%emt 00:07:15]} 23. e3 {[%clk 00:58:21]} {[%emt 00:06:32]} Bg6
{[%clk 00:37:43]} {[%emt 00:05:13]} 24. Qc3 {[%clk 00:57:09]} {[%emt 00:01:42]}
Rd8 {[%clk 00:36:49]} {[%emt 00:01:25]} 25. Qa5 {[%clk 00:53:45]} {[%emt
00:03:53]} Ra8 {[%clk 00:36:45]} {[%emt 00:00:34]} 26. e4 {[%clk 00:44:15]}
{[%emt 00:09:59]} Nd5 {[%clk 00:31:11]} {[%emt 00:06:04]} 27. Qc5 {[%clk
00:43:32]} {[%emt 00:01:12]} Nb6 {[%clk 00:29:04]} {[%emt 00:02:38]} 28. Qa5
{[%clk 00:43:48]} {[%emt 00:00:14]} Nd5 {[%clk 00:28:50]} {[%emt 00:00:44]} 29.
Qc5 {[%clk 00:43:19]} {[%emt 00:00:59]} Nb6 {[%clk 00:29:18]} {[%emt 00:00:02]}
30. Be3 {[%clk 00:40:18]} {[%emt 00:03:30]} Rd8 {[%clk 00:27:21]} {[%emt
00:02:29]} 31. Qa5 {[%clk 00:38:31]} {[%emt 00:02:16]} Nd5 {[%clk 00:23:00]}
{[%emt 00:04:51]} 32. Qxc7 {[%clk 00:36:25]} {[%emt 00:02:36]} Nxc7 {[%clk
00:23:28]} {[%emt 00:00:02]} 33. Kf1 {[%clk 00:35:03]} {[%emt 00:01:51]} a6
{[%clk 00:21:32]} {[%emt 00:02:27]} 34. Bb6 {[%clk 00:33:43]} {[%emt 00:01:50]}
Rd7 {[%clk 00:21:21]} {[%emt 00:00:41]} 35. Ke2 {[%clk 00:33:46]} {[%emt
00:00:27]} Kf8 {[%clk 00:19:19]} {[%emt 00:02:32]} 36. a4 {[%clk 00:33:10]}
{[%emt 00:01:06]} Ke8 {[%clk 00:14:14]} {[%emt 00:05:36]} 37. Ke3 {[%clk
00:31:54]} {[%emt 00:01:45]} Kd8 {[%clk 00:11:22]} {[%emt 00:03:22]} 38. f4
{[%clk 00:31:28]} {[%emt 00:00:55]} Kc8 {[%clk 00:11:24]} {[%emt 00:00:29]} 39.
Bf3 {[%clk 00:30:36]} {[%emt 00:01:21]} f5 {[%clk 00:09:49]} {[%emt 00:02:06]}
40. exf6 {[%clk 00:29:17]} {[%emt 00:01:49]} gxf6 {[%clk 00:10:12]} {[%emt
00:00:07]} 41. Rc5 {[%clk 00:25:56]} {[%emt 00:03:51]} Na8 {[%clk 00:05:35]}
{[%emt 00:05:08]} 42. a5 {[%clk 00:25:43]} {[%emt 00:00:42]} Nxb6 {[%clk
00:03:40]} {[%emt 00:02:25]} 43. axb6 {[%clk 00:26:07]} {[%emt 00:00:06]} Kd8
{[%clk 00:02:42]} {[%emt 00:01:28]} 44. Bh5 {[%clk 00:25:22]} {[%emt 00:01:14]}
Bxh5 {[%clk 00:29:56]} {[%emt 00:03:15]} 45. Rxh5 {[%clk 00:55:48]} {[%emt
00:00:05]} Rh7 {[%clk 00:25:39]} {[%emt 00:04:48]} 46. g4 {[%clk 00:55:25]}
{[%emt 00:00:52]} Rg7 {[%clk 00:24:03]} {[%emt 00:02:06]} 47. h3 {[%clk
00:55:14]} {[%emt 00:00:41]} Rg6 {[%clk 00:23:01]} {[%emt 00:01:32]} 48. f5
{[%clk 00:55:29]} {[%emt 00:00:15]} exf5 {[%clk 00:23:25]} {[%emt 00:00:06]} 49.
exf5 {[%clk 00:55:54]} {[%emt 00:00:05]} Rg7 {[%clk 00:23:40]} {[%emt
00:00:16]} 50. Rxh6 {[%clk 00:56:21]} {[%emt 00:00:03]} Ke7 {[%clk 00:23:42]}
{[%emt 00:00:27]} 51. Kf4 {[%clk 00:56:12]} {[%emt 00:00:40]} a5 {[%clk
00:23:38]} {[%emt 00:00:35]} 52. h4 {[%clk 00:56:20]} {[%emt 00:00:21]} Kf7
{[%clk 00:22:24]} {[%emt 00:01:43]} 53. g5 {[%clk 00:56:44]} {[%emt 00:00:07]}
fxg5+ {[%clk 00:22:38]} {[%emt 00:00:16]} 54. hxg5 {[%clk 00:57:10]} {[%emt
00:00:05]} a4 {[%clk 00:22:32]} {[%emt 00:00:35]} 55. f6 {[%clk 00:57:30]}
{[%emt 00:00:10]} 1-0

[Event "NJSK 2023 Jeugd B"]
[Site "Almelo, Netherlands"]
[Date "2023.04.30"]
[Round "1.2"]
[White "Ponomarev, Ivan"]
[Black "Labruyere, Roger"]
[Result "1-0"]
[TimeControl "90min/40moves + 30min + 30sec/move"]
[WhiteElo "1788"]
[BlackElo "2160"]

1. c4 {[%clk 01:30:58]} {[%emt 00:00:01]} e5 {[%clk 01:30:58]} {[%emt
00:00:02]} 2. g3 {[%clk 01:31:24]} {[%emt 00:00:05]} g6 {[%clk 01:30:22]}
{[%emt 00:01:04]} 3. Bg2 {[%clk 01:31:45]} {[%emt 00:00:10]} Bg7 {[%clk
01:30:46]} {[%emt 00:00:06]} 4. Nc3 {[%clk 01:32:03]} {[%emt 00:00:12]} d6
{[%clk 01:31:00]} {[%emt 00:00:16]} 5. e3 {[%clk 01:30:06]} {[%emt 00:02:27]}
Nc6 {[%clk 01:31:00]} {[%emt 00:00:31]} 6. Nge2 {[%clk 01:30:24]} {[%emt
00:00:12]} Nge7 {[%clk 01:29:40]} {[%emt 00:01:49]} 7. O-O {[%clk 01:26:35]}
{[%emt 00:04:18]} O-O {[%clk 01:29:45]} {[%emt 00:00:23]} 8. a3 {[%clk
01:20:28]} {[%emt 00:06:40]} f5 {[%clk 01:27:27]} {[%emt 00:02:47]} 9. d3
{[%clk 01:18:15]} {[%emt 00:02:44]} Be6 {[%clk 01:24:46]} {[%emt 00:03:11]} 10.
Nd5 {[%clk 01:09:22]} {[%emt 00:09:22]} Rb8 {[%clk 01:20:57]} {[%emt 00:04:20]}
11. Nec3 {[%clk 01:04:56]} {[%emt 00:04:56]} a6 {[%clk 01:19:32]} {[%emt
00:01:55]} 12. Rb1 {[%clk 00:58:00]} {[%emt 00:07:26]} b5 {[%clk 01:17:27]}
{[%emt 00:02:34]} 13. cxb5 {[%clk 00:58:11]} {[%emt 00:00:20]} axb5 {[%clk
01:17:53]} {[%emt 00:00:04]} 14. b4 {[%clk 00:56:19]} {[%emt 00:02:22]} Nxd5
{[%emt 00:01:53]} 15. Nxd5 {[%clk 00:56:11]} {[%emt 00:00:37]} Ne7 {[%clk
01:16:51]} {[%emt 00:00:09]} 16. Nxe7+ {[%clk 00:53:19]} {[%emt 00:03:22]} Qxe7
{[%clk 01:17:20]} {[%emt 00:00:02]} 17. Qc2 {[%clk 00:49:41]} {[%emt 00:04:06]}
Rfc8 {[%clk 01:10:40]} {[%emt 00:07:12]} 18. Bd2 {[%clk 00:44:57]} {[%emt
00:05:14]} c5 {[%clk 01:03:04]} {[%emt 00:08:06]} 19. Qb2 {[%clk 00:41:15]}
{[%emt 00:04:12]} e4 {[%clk 00:59:03]} {[%emt 00:04:31]} 20. d4 {[%clk
00:41:33]} {[%emt 00:00:13]} cxd4 {[%clk 00:59:12]} {[%emt 00:00:21]} 21. exd4
{[%clk 00:41:51]} {[%emt 00:00:11]} Rc4 {[%clk 00:57:04]} {[%emt 00:02:38]} 22.
Be3 {[%clk 00:40:33]} {[%emt 00:01:48]} Rbc8 {[%clk 00:56:50]} {[%emt
00:00:44]} 23. Rfc1 {[%clk 00:38:09]} {[%emt 00:02:53]} Qc7 {[%clk 00:42:32]}
{[%emt 00:14:47]} 24. Bf1 {[%clk 00:29:58]} {[%emt 00:08:42]} Rxc1 {[%clk
00:39:02]} {[%emt 00:04:01]} 25. Rxc1 {[%clk 00:30:17]} {[%emt 00:00:11]} Qb7
{[%clk 00:38:47]} {[%emt 00:00:45]} 26. Rxc8+ {[%clk 00:25:20]} {[%emt
00:05:26]} Bxc8 {[%clk 00:36:41]} {[%emt 00:02:36]} 27. Qb3+ {[%clk 00:25:12]}
{[%emt 00:00:39]} Kf8 {[%clk 00:34:02]} {[%emt 00:03:08]} 28. a4 {[%clk
00:24:37]} {[%emt 00:01:05]} bxa4 {[%clk 00:17:49]} {[%emt 00:16:44]} 29. Qxa4
{[%clk 00:24:45]} {[%emt 00:00:22]} Bd7 {[%clk 00:16:31]} {[%emt 00:01:47]} 30.
b5 {[%clk 00:24:03]} {[%emt 00:01:13]} Ke8 {[%clk 00:15:33]} {[%emt 00:01:28]}
31. Qa5 {[%clk 00:20:14]} {[%emt 00:04:17]} Bf6 {[%clk 00:12:24]} {[%emt
00:03:41]} 32. b6 {[%clk 00:15:11]} {[%emt 00:05:33]} Bc8 {[%clk 00:02:47]}
{[%emt 00:10:07]} 33. d5 {[%clk 00:14:48]} {[%emt 00:00:52]} Kf8 {[%clk
00:02:07]} {[%emt 00:01:10]} 34. Bf4 {[%clk 00:03:57]} {[%emt 00:11:22]} Ke7
{[%clk 00:01:57]} {[%emt 00:00:41]} 35. Bc4 {[%clk 00:03:50]} {[%emt 00:00:36]}
Bd4 {[%clk 00:01:09]} {[%emt 00:01:18]} 36. Be3 {[%clk 00:03:49]} {[%emt
00:00:31]} Be5 {[%clk 00:01:13]} {[%emt 00:00:26]} 37. Qa4 {[%clk 00:01:41]}
{[%emt 00:02:36]} Qb8 {[%clk 00:00:41]} {[%emt 00:01:05]} 38. Bb5 {[%clk
00:01:01]} {[%emt 00:01:09]} Kf8 {[%clk 00:00:33]} {[%emt 00:00:38]} 39. Qa7
{[%clk 00:00:41]} {[%emt 00:00:50]} 1-0

[Event "NJSK 2023 Jeugd B"]
[Site "Almelo, Netherlands"]
[Date "2023.04.30"]
[Round "1.3"]
[White "Smeets, Kobe"]
[Black "Ritzerveld, Noah"]
[Result "1-0"]
[TimeControl "90min/40moves + 30min + 30sec/move"]
[WhiteElo "2094"]
[BlackElo "1776"]

1. e4 {[%clk 01:30:57]} {[%emt 00:00:02]} e5 {[%clk 01:30:53]} {[%emt
00:00:07]} 2. Nf3 {[%clk 01:31:19]} {[%emt 00:00:08]} Nc6 {[%clk 01:31:15]}
{[%emt 00:00:08]} 3. Bb5 {[%clk 01:31:43]} {[%emt 00:00:07]} a6 {[%clk
01:31:38]} {[%emt 00:00:07]} 4. Ba4 {[%clk 01:32:07]} {[%emt 00:00:05]} Nf6
{[%clk 01:32:00]} {[%emt 00:00:08]} 5. O-O {[%clk 01:32:28]} {[%emt 00:00:09]}
Be7 {[%clk 01:32:20]} {[%emt 00:00:10]} 6. Re1 {[%clk 01:32:47]} {[%emt
00:00:11]} b5 {[%clk 01:32:41]} {[%emt 00:00:09]} 7. Bb3 {[%clk 01:33:12]}
{[%emt 00:00:05]} O-O {[%clk 01:33:02]} {[%emt 00:00:10]} 8. a4 {[%clk
01:33:37]} {[%emt 00:00:05]} Bb7 {[%clk 01:33:16]} {[%emt 00:00:16]} 9. d3
{[%clk 01:34:00]} {[%emt 00:00:07]} d6 {[%clk 01:33:37]} {[%emt 00:00:09]} 10.
Bd2 {[%clk 01:34:24]} {[%emt 00:00:05]} b4 {[%clk 01:32:27]} {[%emt 00:01:41]}
11. c3 {[%clk 01:34:45]} {[%emt 00:00:09]} a5 {[%clk 01:21:22]} {[%emt
00:11:34]} 12. d4 {[%clk 01:35:10]} {[%emt 00:00:06]} exd4 {[%clk 01:16:14]}
{[%emt 00:05:38]} 13. cxd4 {[%clk 01:35:29]} {[%emt 00:00:11]} d5 {[%clk
01:14:44]} {[%emt 00:02:00]} 14. e5 {[%clk 01:35:52]} {[%emt 00:00:07]} Ne4
{[%clk 01:14:57]} {[%emt 00:00:17]} 15. Be3 {[%clk 01:36:18]} {[%emt 00:00:03]}
f5 {[%clk 01:07:39]} {[%emt 00:07:48]} 16. exf6 {[%clk 01:36:36]} {[%emt
00:00:12]} Bxf6 {[%clk 01:06:31]} {[%emt 00:01:39]} 17. Nbd2 {[%clk 01:35:34]}
{[%emt 00:01:31]} Kh8 {[%clk 01:05:07]} {[%emt 00:01:55]} 18. Rc1 {[%clk
01:33:25]} {[%emt 00:02:39]} Qd6 {[%clk 00:51:59]} {[%emt 00:13:37]} 19. Nf1
{[%clk 01:27:05]} {[%emt 00:06:50]} Rae8 {[%clk 00:42:08]} {[%emt 00:10:21]} 20.
Qd3 {[%clk 01:21:02]} {[%emt 00:06:33]} Ne7 {[%clk 00:33:23]} {[%emt 00:09:16]}
21. Ng3 {[%clk 01:15:43]} {[%emt 00:05:48]} Rc8 {[%clk 00:28:04]} {[%emt
00:05:50]} 22. Qc2 {[%clk 00:38:56]} {[%emt 00:37:17]} Ng6 {[%clk 00:20:35]}
{[%emt 00:07:58]} 23. Nd2 {[%clk 00:32:57]} {[%emt 00:06:30]} Nxg3 {[%clk
00:10:09]} {[%emt 00:10:55]} 24. hxg3 {[%clk 00:33:25]} {[%emt 00:00:02]} c5
{[%clk 00:01:11]} {[%emt 00:09:28]} 25. dxc5 {[%clk 00:24:38]} {[%emt
00:09:17]} Qc6 {[%clk 00:01:37]} {[%emt 00:00:05]} 26. Nf3 {[%clk 00:23:22]}
{[%emt 00:01:46]} d4 {[%clk 00:01:48]} {[%emt 00:00:19]} 27. Bf4 {[%clk
00:21:27]} {[%emt 00:02:25]} Bg5 {[%clk 00:00:50]} {[%emt 00:01:28]} 28. Re6
{[%clk 00:20:23]} {[%emt 00:01:34]} Qd7 {[%clk 00:00:33]} {[%emt 00:00:48]} 29.
Nxg5 {[%clk 00:20:16]} {[%emt 00:00:35]} Rf6 {[%clk 00:00:31]} {[%emt
00:00:33]} 30. Rxf6 {[%clk 00:20:10]} {[%emt 00:00:36]} gxf6 {[%clk 00:00:56]}
{[%emt 00:00:05]} 31. Nf7+ {[%clk 00:20:31]} {[%emt 00:00:09]} Kg7 {[%clk
00:01:17]} {[%emt 00:00:09]} 32. Bh6+ {[%clk 00:20:53]} {[%emt 00:00:08]} 1-0

[Event "NJSK 2023 Jeugd B"]
[Site "Almelo, Netherlands"]
[Date "2023.04.30"]
[Round "1.4"]
[White "Van Arendonk, Polle"]
[Black "Guillaumond, Matthieu"]
[Result "1-0"]
[TimeControl "90min/40moves + 30min + 30sec/move"]
[WhiteElo "1772"]
[BlackElo "2010"]

1. e4 {[%clk 01:30:50]} {[%emt 00:00:09]} c5 {[%clk 01:30:55]} {[%emt
00:00:05]} 2. Nf3 {[%clk 01:31:17]} {[%emt 00:00:03]} Nc6 {[%clk 01:31:18]}
{[%emt 00:00:06]} 3. d4 {[%clk 01:31:43]} {[%emt 00:00:05]} cxd4 {[%clk
01:31:42]} {[%emt 00:00:06]} 4. Nxd4 {[%clk 01:32:10]} {[%emt 00:00:02]} g6
{[%clk 01:32:03]} {[%emt 00:00:10]} 5. c4 {[%clk 01:32:34]} {[%emt 00:00:06]}
Bg7 {[%clk 01:32:26]} {[%emt 00:00:07]} 6. Be3 {[%clk 01:32:55]} {[%emt
00:00:09]} Nf6 {[%clk 01:32:50]} {[%emt 00:00:06]} 7. Nc3 {[%clk 01:33:21]}
{[%emt 00:00:04]} Ng4 {[%clk 01:33:11]} {[%emt 00:00:09]} 8. Qxg4 {[%clk
01:33:46]} {[%emt 00:00:06]} Nxd4 {[%clk 01:33:32]} {[%emt 00:00:09]} 9. Qd1
{[%clk 01:34:11]} {[%emt 00:00:04]} Ne6 {[%clk 01:33:42]} {[%emt 00:00:20]} 10.
Rc1 {[%clk 01:34:18]} {[%emt 00:00:23]} O-O {[%clk 01:33:55]} {[%emt 00:00:17]}
11. Bd3 {[%clk 01:34:10]} {[%emt 00:00:38]} b6 {[%clk 01:32:44]} {[%emt
00:01:42]} 12. O-O {[%clk 01:32:45]} {[%emt 00:01:54]} Bb7 {[%clk 01:32:27]}
{[%emt 00:00:47]} 13. Qd2 {[%clk 01:28:27]} {[%emt 00:04:48]} Rc8 {[%clk
00:59:48]} {[%emt 00:33:08]} 14. b3 {[%clk 01:27:57]} {[%emt 00:01:01]} f5
{[%clk 00:57:08]} {[%emt 00:03:10]} 15. Nd5 {[%clk 01:20:09]} {[%emt 00:08:18]}
Bxd5 {[%clk 00:47:07]} {[%emt 00:10:32]} 16. exd5 {[%clk 01:17:18]} {[%emt
00:03:20]} Nc5 {[%clk 00:45:34]} {[%emt 00:02:03]} 17. f4 {[%clk 01:00:34]}
{[%emt 00:17:14]} e5 {[%clk 00:38:26]} {[%emt 00:07:38]} 18. fxe5 {[%clk
00:58:53]} {[%emt 00:02:10]} Bxe5 {[%clk 00:38:36]} {[%emt 00:00:20]} 19. b4
{[%clk 00:56:21]} {[%emt 00:03:03]} Nxd3 {[%clk 00:35:43]} {[%emt 00:03:23]} 20.
Qxd3 {[%clk 00:56:17]} {[%emt 00:00:33]} Qh4 {[%clk 00:35:09]} {[%emt
00:01:03]} 21. h3 {[%clk 00:41:25]} {[%emt 00:15:24]} Qg3 {[%clk 00:14:22]}
{[%emt 00:21:17]} 22. Rf3 {[%clk 00:41:43]} {[%emt 00:00:11]} Qh2+ {[%clk
00:14:42]} {[%emt 00:00:10]} 23. Kf2 {[%clk 00:42:11]} {[%emt 00:00:03]} Bg3+
{[%clk 00:13:14]} {[%emt 00:01:57]} 24. Rxg3 {[%clk 00:40:26]} {[%emt
00:02:16]} f4 {[%clk 00:12:28]} {[%emt 00:01:16]} 25. Rxg6+ {[%clk 00:36:57]}
{[%emt 00:03:59]} Kf7 {[%clk 00:12:21]} {[%emt 00:00:37]} 26. Qf5+ {[%clk
00:26:57]} {[%emt 00:10:30]} Ke8 {[%clk 00:12:22]} {[%emt 00:00:28]} 27. Qe5+
{[%clk 00:27:16]} {[%emt 00:00:12]} Kd8 {[%clk 00:12:23]} {[%emt 00:00:28]} 28.
Bxb6+ {[%clk 00:22:08]} {[%emt 00:05:39]} axb6 {[%clk 00:12:29]} {[%emt
00:00:24]} 29. d6 {[%clk 00:21:56]} {[%emt 00:00:42]} Ra8 {[%clk 00:09:18]}
{[%emt 00:03:41]} 30. Qe7+ {[%clk 00:18:05]} {[%emt 00:04:22]} Kc8 {[%clk
00:09:40]} {[%emt 00:00:06]} 31. Qxf8+ {[%clk 00:18:27]} {[%emt 00:00:08]} Kb7
{[%clk 00:10:01]} {[%emt 00:00:10]} 32. Qxa8+ {[%clk 00:18:53]} {[%emt
00:00:03]} Kxa8 {[%clk 00:10:12]} {[%emt 00:00:19]} 33. Rg8+ {[%clk 00:19:14]}
{[%emt 00:00:09]} Kb7 {[%clk 00:10:13]} {[%emt 00:00:30]} 34. Kf3 {[%clk
00:19:09]} {[%emt 00:00:35]} Kc6 {[%clk 00:08:44]} {[%emt 00:01:59]} 35. c5
{[%clk 00:19:27]} {[%emt 00:00:12]} b5 {[%clk 00:02:22]} {[%emt 00:06:52]} 36.
a4 {[%clk 00:19:46]} {[%emt 00:00:11]} 1-0

[Event "NJSK 2023 Jeugd B"]
[Site "Almelo, Netherlands"]
[Date "2023.04.30"]
[Round "1.5"]
[White "Bakija, Alan"]
[Black "Van Egmond, Tom"]
[Result "0-1"]
[TimeControl "90min/40moves + 30min + 30sec/move"]
[WhiteElo "1999"]
[BlackElo "1767"]

1. c4 {[%clk 01:30:57]} {[%emt 00:00:04]} e5 {[%clk 01:30:54]} {[%emt
00:00:07]} 2. g3 {[%clk 01:31:23]} {[%emt 00:00:03]} Nf6 {[%clk 01:31:18]}
{[%emt 00:00:06]} 3. Bg2 {[%clk 01:31:48]} {[%emt 00:00:04]} d5 {[%clk
01:31:18]} {[%emt 00:00:30]} 4. cxd5 {[%clk 01:32:13]} {[%emt 00:00:06]} Nxd5
{[%clk 01:31:45]} {[%emt 00:00:03]} 5. Nc3 {[%clk 01:32:35]} {[%emt 00:00:07]}
Nb6 {[%clk 01:32:09]} {[%emt 00:00:07]} 6. Nf3 {[%clk 01:32:48]} {[%emt
00:00:17]} Nc6 {[%clk 01:32:33]} {[%emt 00:00:07]} 7. d3 {[%clk 01:33:12]}
{[%emt 00:00:05]} Be7 {[%clk 01:32:27]} {[%emt 00:00:36]} 8. Be3 {[%clk
01:33:35]} {[%emt 00:00:07]} O-O {[%clk 01:32:10]} {[%emt 00:00:47]} 9. Rc1
{[%clk 01:33:58]} {[%emt 00:00:06]} Re8 {[%clk 01:29:59]} {[%emt 00:02:41]} 10.
O-O {[%clk 01:33:11]} {[%emt 00:01:15]} Bf8 {[%clk 01:29:40]} {[%emt 00:00:50]}
11. Ne4 {[%clk 01:32:55]} {[%emt 00:00:46]} Nd4 {[%clk 01:18:32]} {[%emt
00:11:39]} 12. Nxd4 {[%clk 01:33:01]} {[%emt 00:00:24]} exd4 {[%clk 01:18:55]}
{[%emt 00:00:07]} 13. Bg5 {[%clk 01:33:24]} {[%emt 00:00:06]} Be7 {[%clk
01:13:58]} {[%emt 00:05:27]} 14. Bxe7 {[%clk 01:33:46]} {[%emt 00:00:08]} Qxe7
{[%clk 01:14:08]} {[%emt 00:00:20]} 15. Re1 {[%clk 01:33:45]} {[%emt 00:00:30]}
c6 {[%clk 01:04:15]} {[%emt 00:10:25]} 16. Qd2 {[%clk 01:34:02]} {[%emt
00:00:12]} Be6 {[%clk 00:57:38]} {[%emt 00:07:08]} 17. Nc5 {[%clk 01:27:04]}
{[%emt 00:07:27]} Bd5 {[%clk 00:56:37]} {[%emt 00:01:31]} 18. e4 {[%clk
01:19:58]} {[%emt 00:07:36]} dxe3 {[%clk 00:53:45]} {[%emt 00:03:22]} 19. Rxe3
{[%clk 01:20:13]} {[%emt 00:00:15]} Qc7 {[%clk 00:50:16]} {[%emt 00:04:00]} 20.
Rce1 {[%clk 01:20:04]} {[%emt 00:00:38]} Rxe3 {[%clk 00:47:36]} {[%emt
00:03:11]} 21. Qxe3 {[%clk 01:16:10]} {[%emt 00:04:23]} Kf8 {[%clk 00:43:44]}
{[%emt 00:04:23]} 22. Bh3 {[%clk 01:09:20]} {[%emt 00:07:18]} Rd8 {[%clk
00:32:50]} {[%emt 00:11:25]} 23. a4 {[%clk 01:06:51]} {[%emt 00:02:56]} h6
{[%clk 00:27:22]} {[%emt 00:06:02]} 24. a5 {[%clk 00:36:00]} {[%emt 00:31:21]}
Nc8 {[%clk 00:26:05]} {[%emt 00:01:46]} 25. Nd7+ {[%clk 00:03:25]} {[%emt
00:33:05]} Kg8 {[%clk 00:26:13]} {[%emt 00:00:22]} 26. Qe8+ {[%clk 00:02:40]}
{[%emt 00:01:15]} Kh7 {[%clk 00:24:08]} {[%emt 00:02:35]} 27. Nf8+ {[%clk
00:02:56]} {[%emt 00:00:14]} Kg8 {[%clk 00:23:41]} {[%emt 00:00:58]} 28. Nd7+
{[%clk 00:03:14]} {[%emt 00:00:11]} Kh7 {[%clk 00:24:04]} {[%emt 00:00:08]} 29.
Bf5+ {[%clk 00:00:57]} {[%emt 00:02:47]} g6 {[%clk 00:24:28]} {[%emt 00:00:06]}
30. Nf6+ {[%clk 00:01:25]} {[%emt 00:00:02]} Kg7 {[%clk 00:24:44]} {[%emt
00:00:15]} 31. Bxc8 {[%clk 00:00:52]} {[%emt 00:01:02]} Kxf6 {[%clk 00:12:04]}
{[%emt 00:13:09]} 32. Qe3 {[%clk 00:01:13]} {[%emt 00:00:09]} Kg7 {[%clk
00:06:24]} {[%emt 00:06:10]} 33. Bg4 {[%clk 00:01:32]} {[%emt 00:00:10]} Qxa5
{[%clk 00:05:29]} {[%emt 00:01:27]} 34. h4 {[%clk 00:01:46]} {[%emt 00:00:14]}
Qb4 {[%clk 00:04:43]} {[%emt 00:01:18]} 35. Qe5+ {[%clk 00:01:29]} {[%emt
00:00:45]} Kg8 {[%clk 00:04:57]} {[%emt 00:00:17]} 36. Bh3 {[%clk 00:01:20]}
{[%emt 00:00:38]} Qd6 {[%clk 00:04:09]} {[%emt 00:01:19]} 37. Qe3 {[%clk
00:01:10]} {[%emt 00:00:40]} Qf6 {[%clk 00:04:06]} {[%emt 00:00:33]} 38. Re2
{[%clk 00:00:34]} {[%emt 00:01:06]} h5 {[%clk 00:03:58]} {[%emt 00:00:39]} 39.
Bg2 {[%clk 00:00:35]} {[%emt 00:00:29]} Bxg2 {[%clk 00:03:54]} {[%emt
00:00:34]} 40. Kxg2 {[%clk 00:01:03]} {[%emt 00:00:01]} a5 {[%clk 00:01:35]}
{[%emt 00:02:49]} 41. Rd2 {[%clk 00:15:21]} {[%emt 00:16:12]} a4 {[%clk
00:29:20]} {[%emt 00:02:45]} 42. Qb6 {[%clk 00:12:03]} {[%emt 00:03:47]} Qe7
{[%clk 00:26:54]} {[%emt 00:02:57]} 43. Qe3 {[%clk 00:06:58]} {[%emt 00:05:35]}
Qxe3 {[%clk 00:24:39]} {[%emt 00:02:45]} 44. fxe3 {[%clk 00:07:22]} {[%emt
00:00:06]} c5 {[%clk 00:24:50]} {[%emt 00:00:20]} 45. Kf2 {[%clk 00:07:45]}
{[%emt 00:00:06]} c4 {[%clk 00:24:36]} {[%emt 00:00:45]} 46. d4 {[%clk
00:03:21]} {[%emt 00:04:54]} b5 {[%clk 00:24:42]} {[%emt 00:00:24]} 47. e4
{[%clk 00:03:27]} {[%emt 00:00:23]} b4 {[%clk 00:24:01]} {[%emt 00:01:11]} 48.
Ke3 {[%clk 00:03:26]} {[%emt 00:00:31]} b3 {[%clk 00:23:17]} {[%emt 00:01:15]}
49. Rd1 {[%clk 00:00:43]} {[%emt 00:03:12]} c3 {[%clk 00:22:27]} {[%emt
00:01:20]} 50. Kd3 {[%clk 00:00:34]} {[%emt 00:00:39]} c2 {[%clk 00:21:37]}
{[%emt 00:01:21]} 51. Re1 {[%clk 00:00:36]} {[%emt 00:00:27]} Rc8 {[%clk
00:21:44]} {[%emt 00:00:23]} 52. Kd2 {[%clk 00:00:40]} {[%emt 00:00:26]} a3
{[%clk 00:21:59]} {[%emt 00:00:16]} 53. bxa3 {[%clk 00:00:33]} {[%emt
00:00:37]} b2 {[%clk 00:22:21]} {[%emt 00:00:07]} 0-1